fUST/lending_fUST_20241106
["ID","MTS","AMOUNT","RATE_DAILY","PERIOD"]
[341417843,1730868667433,-1200.0,0.00040042,4]
[341417844,1730868667443,-281.468607,0.00040045,2]
[341417845,1730868667453,-288.639516,0.00040045,2]
[341417846,1730868667463,-1041.079522,0.00040045,2]
[341417847,1730868667473,-1085.804123,0.00040045,2]
[341417848,1730868667483,-1245.421116,0.00040045,2]
[341417849,1730868667493,-545.402279,0.00040045,2]
[341417850,1730868667504,-150.0,0.00040191,2]
[341417851,1730868667518,-1137.0,0.00040191,2]
[341417852,1730868667528,-529.0,0.00040191,2]
[341417853,1730868667538,-2393.0,0.00040191,2]
[341417854,1730868667548,-500.0,0.00040273,14]
[341417855,1730868667560,-500.0,0.00040273,14]
[341417856,1730868667570,-500.0,0.00040273,14]
[341417857,1730868667581,-500.0,0.00040273,14]
[341417858,1730868667593,-500.0,0.00040273,14]
[341417859,1730868667604,-500.0,0.00040273,14]
[341417860,1730868667615,-500.0,0.00040273,14]
[341417861,1730868667626,-904.06,0.00040273,14]
[341417862,1730868667637,-500.0,0.00040273,14]
[341417863,1730868667647,-500.0,0.00040273,14]
[341417864,1730868667658,-210.06,0.00040273,14]
[341417865,1730868667667,-500.0,0.00040273,14]
[341417866,1730868667678,-773.63,0.00040273,14]
[341417867,1730868667688,-823.92,0.00040273,14]
[341417868,1730868667698,-500.0,0.00040273,14]
[341417869,1730868667708,-500.0,0.00040273,14]
[341417870,1730868667718,-500.0,0.00040273,14]
[341417871,1730868667728,-500.0,0.00040273,14]
[341417872,1730868667738,-439.5,0.00040273,14]
[341417873,1730868667747,-642.39,0.00040273,14]
[341417874,1730868667757,-543.51,0.00040273,14]
[341417875,1730868667767,-500.0,0.00040273,14]
[341417876,1730868667777,-2798.29,0.00040273,14]
[341417877,1730868667787,-500.0,0.00040273,14]
[341417878,1730868667797,-500.0,0.00040273,14]
[341417879,1730868667807,-196.79,0.00040273,14]
[341417880,1730868667817,-500.0,0.00040273,14]
[341417881,1730868667828,-500.0,0.00040273,14]
[341417882,1730868667838,-715.45,0.00040273,14]
[341417883,1730868667850,-656.66,0.00040273,14]
[341417884,1730868667863,-500.0,0.00040273,14]
[341417885,1730868667874,-500.0,0.00040273,14]
[341417886,1730868667883,-500.0,0.00040273,14]
[341417887,1730868667893,-500.0,0.00040273,14]
[341417888,1730868667902,-500.0,0.00040273,14]
[341417889,1730868667912,-1006.68,0.00040273,14]
[341417890,1730868667922,-659.12,0.00040273,14]
[341417891,1730868667934,-1141.98,0.00040273,14]
[341417892,1730868667946,-867.45,0.00040273,14]
[341417893,1730868667956,-500.0,0.00040273,14]
[341417894,1730868667966,-500.0,0.00040273,14]
[341417895,1730868667975,-500.0,0.00040273,14]
[341417896,1730868667985,-939.45,0.00040273,14]
[341417897,1730868667997,-589.54347649,0.00040273,14]
[341417898,1730868668008,-500.0,0.00040273,14]
[341417899,1730868668019,-8657.6,0.00040273,14]
[341417900,1730868668031,-500.0,0.00040273,14]
[341417901,1730868668042,-500.0,0.00040273,14]
[341417902,1730868668054,-244.98,0.00040273,14]
[341417903,1730868668064,-500.0,0.00040273,14]
[341417904,1730868668076,-3162.9,0.00040273,14]
[341417905,1730868668086,-500.0,0.00040273,14]
[341417906,1730868668096,-500.0,0.00040273,14]
[341417907,1730868668106,-500.0,0.00040273,14]
[341417908,1730868668116,-500.0,0.00040273,14]
[341417909,1730868668125,-500.0,0.00040273,14]
[341417910,1730868668136,-500.0,0.00040273,14]
[341417911,1730868668146,-2538.96,0.00040273,14]
[341417912,1730868668157,-500.0,0.00040273,14]
[341417913,1730868668168,-500.0,0.00040273,14]
[341417914,1730868668177,-500.0,0.00040273,14]
[341417915,1730868668188,-7389.67,0.00040273,14]
[341417916,1730868668199,-9532.68,0.00040273,14]
[341417917,1730868668209,-600.0,0.00040294,2]
[341417918,1730868668221,-1400.0,0.00040316,4]
[341417919,1730868668231,-165.024245,0.0004037,2]
[341417920,1730868668241,-500.0,0.000404,3]
[341417921,1730868668251,-35493.86494188,0.000405,60]
[341417922,1730868668260,-150.0,0.000405,2]
[341417923,1730868668270,-789.73,0.000405,30]
[341417924,1730868668280,-281.468607,0.00040533,2]
[341417925,1730868668291,-288.639516,0.00040533,2]
[341417926,1730868668301,-1041.079522,0.00040533,2]
[341417927,1730868668311,-1085.804123,0.00040533,2]
[341417928,1730868668321,-1245.421116,0.00040533,2]
[341417929,1730868668331,-545.402279,0.00040533,2]
[341417930,1730868668340,-500.0,0.00040547,14]
[341417931,1730868668350,-500.0,0.00040547,14]
[341417932,1730868668361,-500.0,0.00040547,14]
[341417933,1730868668371,-500.0,0.00040547,14]
[341417934,1730868668381,-500.0,0.00040547,14]
[341417935,1730868668390,-500.0,0.00040547,14]
[341417936,1730868668400,-500.0,0.00040547,14]
[341417937,1730868668410,-904.06,0.00040547,14]
[341417938,1730868668419,-500.0,0.00040547,14]
[341417939,1730868668429,-500.0,0.00040547,14]
[341417940,1730868668439,-773.63,0.00040547,14]
[341417941,1730868668448,-823.92,0.00040547,14]
[341417942,1730868668458,-500.0,0.00040547,14]
[341417943,1730868668468,-500.0,0.00040547,14]
[341417944,1730868668479,-500.0,0.00040547,14]
[341417945,1730868668489,-500.0,0.00040547,14]
[341417946,1730868668499,-543.51,0.00040547,14]
[341417947,1730868668510,-245.65980891,0.00040547,14]
[341417948,1730868668519,-2798.29,0.00040547,14]
[341417949,1730868668529,-500.0,0.00040547,14]
[341417950,1730868668539,-500.0,0.00040547,14]
[341417951,1730868668549,-500.0,0.00040547,14]
[341417952,1730868668558,-500.0,0.00040547,14]
[341417953,1730868668568,-715.45,0.00040547,14]
[341417954,1730868668577,-656.66,0.00040547,14]
[341417955,1730868668587,-500.0,0.00040547,14]
[341417956,1730868668599,-500.0,0.00040547,14]
[341417957,1730868668610,-500.0,0.00040547,14]
[341417958,1730868668619,-500.0,0.00040547,14]
[341417959,1730868668711,-500.0,0.00040547,14]
[341417960,1730868668720,-1006.68,0.00040547,14]
[341417961,1730868668730,-659.12,0.00040547,14]
[341417962,1730868668739,-1141.98,0.00040547,14]
[341417963,1730868668749,-867.45,0.00040547,14]
[341417964,1730868668759,-500.0,0.00040547,14]
[341417965,1730868668769,-500.0,0.00040547,14]
[341417966,1730868668780,-500.0,0.00040547,14]
[341417967,1730868668790,-939.45,0.00040547,14]
[341417968,1730868668801,-258.65,0.00040547,14]
[341417969,1730868668810,-8657.6,0.00040547,14]
[341417970,1730868668820,-500.0,0.00040547,14]
[341417971,1730868668830,-500.0,0.00040547,14]
[341417972,1730868668840,-500.0,0.00040547,14]
[341417973,1730868668849,-3162.9,0.00040547,14]
[341417974,1730868668860,-500.0,0.00040547,14]
[341417975,1730868668870,-500.0,0.00040547,14]
[341417976,1730868668880,-500.0,0.00040547,14]
[341417977,1730868668889,-500.0,0.00040547,14]
[341417978,1730868668899,-500.0,0.00040547,14]
[341417979,1730868668908,-312.48045757,0.00040547,14]
[341417980,1730868668917,-2538.96,0.00040547,14]
[341417981,1730868668927,-500.0,0.00040547,14]
[341417982,1730868668938,-500.0,0.00040547,14]
[341417983,1730868668948,-7389.67,0.00040547,14]
[341417984,1730868668959,-9532.68,0.00040547,14]
[341417985,1730868668969,-1600.0,0.0004059,4]
[341417986,1730868668979,-475.66,0.000406,30]
[341417987,1730868668989,-151.0,0.00040603,120]
[341417988,1730868669001,-2765.24,0.00040684,120]
[341417989,1730868669010,-600.0,0.00040714,2]
[341417990,1730868669020,-500.0,0.00040821,14]
[341417991,1730868669030,-500.0,0.00040821,14]
[341417992,1730868669040,-500.0,0.00040821,14]
[341417993,1730868669051,-500.0,0.00040821,14]
[341417994,1730868669062,-500.0,0.00040821,14]
[341417995,1730868669073,-500.0,0.00040821,14]
[341417996,1730868669082,-500.0,0.00040821,14]
[341417997,1730868669091,-904.06,0.00040821,14]
[341417998,1730868669101,-500.0,0.00040821,14]
[341417999,1730868669113,-773.63,0.00040821,14]
[341418000,1730868669123,-823.92,0.00040821,14]
[341418001,1730868669133,-500.0,0.00040821,14]
[341418002,1730868669142,-500.0,0.00040821,14]
[341418003,1730868669152,-500.0,0.00040821,14]
[341418004,1730868669161,-500.0,0.00040821,14]
[341418005,1730868669171,-543.51,0.00040821,14]
[341418006,1730868669181,-2798.29,0.00040821,14]
[341418007,1730868669190,-500.0,0.00040821,14]
[341418008,1730868669200,-500.0,0.00040821,14]
[341418009,1730868669209,-500.0,0.00040821,14]
[341418010,1730868669219,-500.0,0.00040821,14]
[341418011,1730868669228,-715.45,0.00040821,14]
[341418012,1730868669239,-656.66,0.00040821,14]
[341418013,1730868669248,-500.0,0.00040821,14]
[341418014,1730868669259,-584.53,0.00040821,14]
[341418015,1730868669270,-500.0,0.00040821,14]
[341418016,1730868669281,-500.0,0.00040821,14]
[341418017,1730868669291,-500.0,0.00040821,14]
[341418018,1730868669300,-1006.68,0.00040821,14]
[341418019,1730868669310,-659.12,0.00040821,14]
[341418020,1730868669319,-1141.98,0.00040821,14]
[341418021,1730868669329,-867.45,0.00040821,14]
[341418022,1730868669339,-500.0,0.00040821,14]
[341418023,1730868669349,-500.0,0.00040821,14]
[341418024,1730868669361,-500.0,0.00040821,14]
[341418025,1730868669370,-939.45,0.00040821,14]
[341418026,1730868669381,-362.40500026,0.00040821,14]
[341418027,1730868669392,-8657.6,0.00040821,14]
[341418028,1730868669401,-500.0,0.00040821,14]
[341418029,1730868669411,-500.0,0.00040821,14]
[341418030,1730868669420,-3162.9,0.00040821,14]
[341418031,1730868669430,-500.0,0.00040821,14]
[341418032,1730868669442,-500.0,0.00040821,14]
[341418033,1730868669453,-500.0,0.00040821,14]
[341418034,1730868669463,-500.0,0.00040821,14]
[341418035,1730868669472,-500.0,0.00040821,14]
[341418036,1730868669482,-2538.96,0.00040821,14]
[341418037,1730868669491,-500.0,0.00040821,14]
[341418038,1730868669501,-500.0,0.00040821,14]
[341418039,1730868669514,-7389.67,0.00040821,14]
[341418040,1730868669524,-9532.68,0.00040821,14]
[341418041,1730868669535,-1902.01816497,0.00040864,4]
[341418042,1730868669544,-300.0,0.000409,20]
[341418043,1730868669554,-604.119466,0.000409,3]
[341418044,1730868669563,-65663.84210716,0.000409,35]
[341418045,1730868669573,-4554.69616955,0.000409,35]
[341418046,1730868669584,-4554.69616953,0.000409,35]
[341418047,1730868669594,-4554.69616953,0.000409,35]
[341418048,1730868669604,-4554.69616953,0.000409,35]
[341418049,1730868669615,-500.0,0.00040904,60]
[341418050,1730868669625,-151.0,0.00040959,120]
[341418051,1730868669634,-1000.0,0.00041,120]
[341418052,1730868669643,-230.0,0.00041,120]
[341418053,1730868669653,-27683.75825375,0.00041,2]
[341418054,1730868669663,-3223.36447261,0.00041,30]
[341418055,1730868669675,-151.0,0.00041,14]
[341418056,1730868669686,-151.0,0.00041,14]
[341418057,1730868669697,-5000.0,0.00041,2]
[341418058,1730868669708,-5000.0,0.00041,2]
[341418059,1730868669718,-5000.0,0.00041,2]
[341418060,1730868669730,-5000.0,0.00041,2]
[341418061,1730868669739,-4053.10887355,0.00041,2]
[341418062,1730868669749,-500.0,0.00041,120]
[341418063,1730868669758,-500.0,0.00041,120]
[341418064,1730868669768,-500.0,0.00041,120]
[341418065,1730868669778,-500.0,0.00041,120]
[341418066,1730868669788,-500.0,0.00041,120]
[341418067,1730868669799,-500.0,0.00041,120]
[341418068,1730868669810,-500.0,0.00041,120]
[341418069,1730868669820,-500.0,0.00041,120]
[341418070,1730868669831,-500.0,0.00041,120]
[341418071,1730868669841,-500.0,0.00041,120]
[341418072,1730868669850,-500.0,0.00041,120]
[341418073,1730868669860,-500.0,0.00041,120]
[341418074,1730868669870,-500.0,0.00041,120]
[341418075,1730868669880,-500.0,0.00041,120]
[341418076,1730868669890,-500.0,0.00041,120]
[341418077,1730868669900,-500.0,0.00041,120]
[341418078,1730868669910,-500.0,0.00041,120]
[341418079,1730868669919,-500.0,0.00041,120]
[341418080,1730868669929,-500.0,0.00041,120]
[341418081,1730868669944,-500.0,0.00041,120]
[341418082,1730868669955,-500.0,0.00041,120]
[341418083,1730868669966,-482.74,0.00041,120]
[341418084,1730868669977,-500.0,0.00041,120]
[341418085,1730868669987,-500.0,0.00041,120]
[341418086,1730868669999,-500.0,0.00041,120]
[341418087,1730868670010,-500.0,0.00041,120]
[341418088,1730868670020,-500.0,0.00041,120]
[341418089,1730868670030,-500.0,0.00041,120]
[341418090,1730868670041,-500.0,0.00041,120]
[341418091,1730868670051,-500.0,0.00041,120]
[341418092,1730868670061,-500.0,0.00041,120]
[341418093,1730868670072,-500.0,0.00041,120]
[341418094,1730868670082,-500.0,0.00041,120]
[341418095,1730868670091,-500.0,0.00041,120]
[341418096,1730868670103,-500.0,0.00041,120]
[341418097,1730868670115,-500.0,0.00041,120]
[341418098,1730868670124,-500.0,0.00041,120]
[341418099,1730868670134,-500.0,0.00041,120]
[341418100,1730868670143,-500.0,0.00041,120]
[341418101,1730868670153,-500.0,0.00041,120]
[341418102,1730868670163,-500.0,0.00041,120]
[341418103,1730868670172,-500.0,0.00041,120]
[341418104,1730868670181,-500.0,0.00041,120]
[341418105,1730868670191,-500.0,0.00041,120]
[341418106,1730868670201,-500.0,0.00041,120]
[341418107,1730868670211,-500.0,0.00041,120]
[341418108,1730868670221,-500.0,0.00041,120]
[341418109,1730868670232,-500.0,0.00041,120]
[341418110,1730868670241,-500.0,0.00041,120]
[341418111,1730868670251,-500.0,0.00041,120]
[341418112,1730868670261,-500.0,0.00041,120]
[341418113,1730868670271,-500.0,0.00041,120]
[341418114,1730868670282,-500.0,0.00041,120]
[341418115,1730868670293,-323.78,0.00041,120]
[341418116,1730868670303,-500.0,0.00041,120]
[341418117,1730868670313,-281.468607,0.00041022,2]
[341418118,1730868670322,-288.639516,0.00041022,2]
[341418119,1730868670332,-1041.079522,0.00041022,2]
[341418120,1730868670342,-1085.804123,0.00041022,2]
[341418121,1730868670352,-1245.421116,0.00041022,2]
[341418122,1730868670366,-545.402279,0.00041022,2]
[341418123,1730868670376,-160.467828,0.00041022,2]
[341418124,1730868670385,-165.024245,0.00041022,2]
[341418125,1730868670396,-152.0,0.00041026,15]
[341418126,1730868670406,-151.0,0.00041068,14]
[341418127,1730868670416,-2128.52,0.00041068,120]
[341418128,1730868670425,-2128.52,0.00041068,120]
[341418129,1730868670435,-2128.52,0.00041068,120]
[341418130,1730868670444,-2128.52,0.00041068,120]
[341418131,1730868670455,-2128.52,0.00041068,120]
[341418132,1730868670465,-2128.52,0.00041068,120]
[341418133,1730868670476,-2128.52,0.00041068,120]
[341418134,1730868670486,-2128.52,0.00041068,120]
[341418135,1730868670495,-2128.52,0.00041068,120]
[341418136,1730868670505,-2128.52,0.00041068,120]
[341418137,1730868670518,-2128.52,0.00041068,120]
[341418138,1730868670528,-2128.52,0.00041068,120]
[341418139,1730868670539,-2128.52,0.00041068,120]
[341418140,1730868670549,-2128.52,0.00041068,120]
[341418141,1730868670559,-2128.52,0.00041068,120]
[341418142,1730868670569,-2128.52,0.00041068,120]
[341418143,1730868670579,-2128.52,0.00041068,120]
[341418144,1730868670591,-2128.52,0.00041068,120]
[341418145,1730868670601,-2128.52,0.00041068,120]
[341418146,1730868670614,-2128.52,0.00041068,120]
[341418147,1730868670624,-2128.52,0.00041068,120]
[341418148,1730868670634,-2128.52,0.00041068,120]
[341418149,1730868670644,-2128.52,0.00041068,120]
[341418150,1730868670653,-2128.73155456,0.00041068,120]
[341418151,1730868670663,-152.0,0.00041076,31]
[341418152,1730868670672,-3522.48131199,0.0004109,2]
[341418153,1730868670683,-201.90823834,0.00041095,120]
[341418154,1730868670693,-250.64144481,0.00041095,14]
[341418155,1730868670703,-500.0,0.00041095,14]
[341418156,1730868670713,-500.0,0.00041095,14]
[341418157,1730868670723,-507.05536103,0.00041095,14]
[341418158,1730868670733,-500.0,0.00041095,14]
[341418159,1730868670743,-605.62,0.00041095,14]
[341418160,1730868670832,-500.0,0.00041095,14]
[341418161,1730868670842,-500.0,0.00041095,14]
[341418162,1730868670852,-500.0,0.00041095,14]
[341418163,1730868670868,-904.06,0.00041095,14]
[341418164,1730868670878,-618.52,0.00041095,14]
[341418165,1730868670888,-773.63,0.00041095,14]
[341418166,1730868670897,-823.92,0.00041095,14]
[341418167,1730868670907,-500.0,0.00041095,14]
[341418168,1730868670916,-500.0,0.00041095,14]
[341418169,1730868670926,-274.03,0.00041095,14]
[341418170,1730868670935,-500.0,0.00041095,14]
[341418171,1730868670945,-500.0,0.00041095,120]
[341418172,1730868670954,-500.0,0.00041095,120]
[341418173,1730868670963,-500.0,0.00041095,120]
[341418174,1730868670972,-500.0,0.00041095,120]
[341418175,1730868670982,-500.0,0.00041095,120]
[341418176,1730868670991,-500.0,0.00041095,120]
[341418177,1730868671001,-500.0,0.00041095,120]
[341418178,1730868671010,-500.0,0.00041095,120]
[341418179,1730868671020,-225.33502791,0.00041095,120]
[341418180,1730868671029,-543.51,0.00041095,14]
[341418181,1730868671038,-2798.29,0.00041095,14]
[341418182,1730868671048,-500.0,0.00041095,14]
[341418183,1730868671058,-500.0,0.00041095,14]
[341418184,1730868671067,-500.0,0.00041095,90]
[341418185,1730868671077,-500.0,0.00041095,94]
[341418186,1730868671087,-500.0,0.00041095,98]
[341418187,1730868671097,-500.17461736,0.00041095,102]
[341418188,1730868671113,-632.07921317,0.00041095,14]
[341418189,1730868671123,-500.0,0.00041095,14]
[341418190,1730868671132,-715.45,0.00041095,14]
[341418191,1730868671141,-656.66,0.00041095,14]
[341418192,1730868671150,-500.0,0.00041095,14]
[341418193,1730868671160,-500.0,0.00041095,14]
[341418194,1730868671169,-500.0,0.00041095,14]
[341418195,1730868671179,-500.0,0.00041095,14]
[341418196,1730868671189,-1006.68,0.00041095,14]
[341418197,1730868671199,-659.12,0.00041095,14]
[341418198,1730868671209,-1141.98,0.00041095,14]
[341418199,1730868671218,-867.45,0.00041095,14]
[341418200,1730868671228,-500.0,0.00041095,14]
[341418201,1730868671237,-500.0,0.00041095,14]
[341418202,1730868671246,-500.0,0.00041095,14]
[341418203,1730868671256,-939.45,0.00041095,14]
[341418204,1730868671266,-8657.6,0.00041095,14]
[341418205,1730868671275,-500.0,0.00041095,14]
[341418206,1730868671284,-500.0,0.00041095,14]
[341418207,1730868671294,-3162.9,0.00041095,14]
[341418208,1730868671304,-500.0,0.00041095,14]
[341418209,1730868671315,-511.74823867,0.00041095,14]
[341418210,1730868671324,-500.0,0.00041095,14]
[341418211,1730868671333,-500.0,0.00041095,14]
[341418212,1730868671343,-2538.96,0.00041095,14]
[341418213,1730868671353,-500.0,0.00041095,14]
[341418214,1730868671365,-500.0,0.00041095,14]
[341418215,1730868671375,-7389.67,0.00041095,14]
[341418216,1730868671384,-9532.68,0.00041095,14]
[341418217,1730868671394,-180.6467139,0.00041096,2]
[341418218,1730868671404,-500.0,0.00041096,31]
[341418219,1730868671413,-500.0,0.00041096,31]
[341418220,1730868671422,-500.0,0.00041096,31]
[341418221,1730868671432,-500.0,0.00041096,31]
[341418222,1730868671442,-500.0,0.00041096,31]
[341418223,1730868671451,-500.0,0.00041096,31]
[341418224,1730868671461,-500.0,0.00041096,31]
[341418225,1730868671471,-500.0,0.00041096,31]
[341418226,1730868671481,-500.0,0.00041096,31]
[341418227,1730868671490,-500.0,0.00041096,31]
[341418228,1730868671500,-500.0,0.00041096,31]
[341418229,1730868671511,-500.0,0.00041096,31]
[341418230,1730868671521,-500.0,0.00041096,31]
[341418231,1730868671531,-500.0,0.00041096,31]
[341418232,1730868671540,-500.0,0.00041096,31]
[341418233,1730868671549,-500.0,0.00041096,31]
[341418234,1730868671560,-500.0,0.00041096,31]
[341418235,1730868671569,-500.0,0.00041096,31]
[341418236,1730868671578,-500.0,0.00041096,31]
[341418237,1730868671589,-500.0,0.00041096,31]
[341418238,1730868671599,-500.0,0.00041096,31]
[341418239,1730868671612,-500.0,0.00041096,31]
[341418240,1730868671621,-500.0,0.00041096,31]
[341418241,1730868671631,-500.0,0.00041096,31]
[341418242,1730868671640,-500.0,0.00041096,31]
[341418243,1730868671650,-500.0,0.00041096,31]
[341418244,1730868671661,-500.0,0.00041096,31]
[341418245,1730868671673,-500.0,0.00041096,31]
[341418246,1730868671683,-500.0,0.00041096,31]
[341418247,1730868671693,-500.0,0.00041096,31]
[341418248,1730868671703,-500.0,0.00041096,31]
[341418249,1730868671712,-500.0,0.00041096,31]
[341418250,1730868671721,-500.0,0.00041096,31]
[341418251,1730868671730,-500.0,0.00041096,31]
[341418252,1730868671739,-500.0,0.00041096,31]
[341418253,1730868671750,-500.0,0.00041096,31]
[341418254,1730868671759,-500.0,0.00041096,31]
[341418255,1730868671769,-500.0,0.00041096,31]
[341418256,1730868671779,-500.0,0.00041096,31]
[341418257,1730868671789,-500.0,0.00041096,31]
[341418258,1730868671799,-500.0,0.00041096,31]
[341418259,1730868671810,-500.0,0.00041096,31]
[341418260,1730868671820,-500.0,0.00041096,31]
[341418261,1730868671830,-500.0,0.00041096,31]
[341418262,1730868671839,-325.95738841,0.00041096,31]
[341418263,1730868671848,-500.0,0.00041096,31]
[341418264,1730868671859,-500.0,0.00041096,31]
[341418265,1730868671868,-500.0,0.00041096,31]
[341418266,1730868671879,-500.0,0.00041096,31]
[341418267,1730868671890,-433.61649565,0.00041096,31]
[341418268,1730868671901,-500.0,0.00041096,31]
[341418269,1730868671912,-500.0,0.00041096,31]
[341418270,1730868671923,-2013.44,0.000411,2]
[341418271,1730868671933,-152.0,0.00041127,31]
[341418272,1730868671943,-600.0,0.00041134,2]
[341418273,1730868671953,-152.0,0.00041177,31]
[341418274,1730868671963,-929.0,0.000412,30]
[341418275,1730868671973,-152.0,0.00041227,31]
[341418276,1730868671982,-152.0,0.00041277,31]
[341418277,1730868671991,-165.297658,0.00041309,2]
[341418278,1730868672001,-152.0,0.00041327,31]
[341418279,1730868672011,-500.0,0.00041369,14]
[341418280,1730868672021,-290.76548043,0.00041369,14]
[341418281,1730868672031,-377.17,0.00041369,14]
[341418282,1730868672040,-500.0,0.00041369,14]
[341418283,1730868672050,-500.0,0.00041369,14]
[341418284,1730868672061,-500.0,0.00041369,14]
[341418285,1730868672070,-904.06,0.00041369,14]
[341418286,1730868672080,-773.63,0.00041369,14]
[341418287,1730868672089,-823.92,0.00041369,14]
[341418288,1730868672099,-500.0,0.00041369,14]
[341418289,1730868672112,-500.0,0.00041369,14]
[341418290,1730868672121,-500.0,0.00041369,14]
[341418291,1730868672131,-543.51,0.00041369,14]
[341418292,1730868672140,-2798.29,0.00041369,14]
[341418293,1730868672150,-500.0,0.00041369,14]
[341418294,1730868672160,-500.0,0.00041369,14]
[341418295,1730868672169,-715.45,0.00041369,14]
[341418296,1730868672178,-656.66,0.00041369,14]
[341418297,1730868672188,-500.0,0.00041369,14]
[341418298,1730868672197,-500.0,0.00041369,14]
[341418299,1730868672207,-500.0,0.00041369,14]
[341418300,1730868672217,-500.0,0.00041369,14]
[341418301,1730868672227,-1006.68,0.00041369,14]
[341418302,1730868672236,-659.12,0.00041369,14]
[341418303,1730868672246,-1141.98,0.00041369,14]
[341418304,1730868672255,-867.45,0.00041369,14]
[341418305,1730868672265,-500.0,0.00041369,14]
[341418306,1730868672274,-500.0,0.00041369,14]
[341418307,1730868672284,-500.0,0.00041369,14]
[341418308,1730868672294,-939.45,0.00041369,14]
[341418309,1730868672305,-8657.6,0.00041369,14]
[341418310,1730868672316,-500.0,0.00041369,14]
[341418311,1730868672326,-500.0,0.00041369,14]
[341418312,1730868672335,-3162.9,0.00041369,14]
[341418313,1730868672345,-500.0,0.00041369,14]
[341418314,1730868672356,-500.0,0.00041369,14]
[341418315,1730868672370,-500.0,0.00041369,14]
[341418316,1730868672379,-2538.96,0.00041369,14]
[341418317,1730868672389,-500.0,0.00041369,14]
[341418318,1730868672398,-7389.67,0.00041369,14]
[341418319,1730868672408,-9532.68,0.00041369,14]
[341418320,1730868672418,-152.0,0.00041377,31]
[341418321,1730868672428,-152.0,0.00041427,31]
[341418322,1730868672437,-152.0,0.00041477,31]
[341418323,1730868672446,-150.0,0.000415,2]
[341418324,1730868672456,-1000.0,0.00041508,7]
[341418325,1730868672465,-152.0,0.00041528,31]
[341418326,1730868672475,-1070.99126672,0.00041553,2]
[341418327,1730868672484,-500.0,0.00041576,120]
[341418328,1730868672493,-500.0,0.00041576,120]
[341418329,1730868672503,-500.0,0.00041576,120]
[341418330,1730868672516,-500.0,0.00041576,120]
[341418331,1730868672525,-500.0,0.00041576,120]
[341418332,1730868672535,-500.0,0.00041576,120]
[341418333,1730868672544,-500.0,0.00041576,120]
[341418334,1730868672554,-500.0,0.00041576,120]
[341418335,1730868672564,-526.54163539,0.00041576,120]
[341418336,1730868672574,-9798.77046388,0.00041576,2]
[341418337,1730868672584,-152.0,0.00041578,31]
[341418338,1730868672595,-505.34907639,0.00041601,15]
[341418339,1730868672610,-1000.0,0.00041617,7]
[341418340,1730868672620,-152.0,0.00041628,31]
[341418341,1730868672630,-500.0,0.00041631,15]
[341418342,1730868672639,-279.97,0.00041643,14]